fUST/lending_fUST_20251215
["ID","MTS","AMOUNT","RATE_DAILY","PERIOD"]
[398492241,1765743543420,500.0,0.00013699,2]
[398492242,1765743543500,500.0,0.00013273,2]
[398492243,1765743543736,500.0,0.00013699,2]
[398492244,1765743544317,500.0,0.00013273,2]
[398492245,1765743544907,151.42,0.00012,2]
[398492246,1765743545894,500.0,0.00013699,2]
[398492247,1765743546496,500.0,0.00013273,2]
[398492248,1765743547526,385.85485925,0.00013699,2]
[398492249,1765743547552,114.14514075,0.00013699,2]
[398492250,1765743554041,164.51,7.461e-05,2]
[398492251,1765743554509,329.01,8.139e-05,2]
[398492252,1765743554572,500.0,0.00013699,2]
[398492253,1765743554841,493.52,8.818e-05,2]
[398492254,1765743555255,658.03,9.496e-05,2]
[398492255,1765743555658,822.53,0.00010174,2]
[398492256,1765743556120,987.04,0.00010853,2]
[398492257,1765743556519,1151.55,0.00011531,2]
[398492258,1765743557401,1316.05,0.00012209,2]
[398492259,1765743557807,1480.56,0.00012887,2]
[398492260,1765743558234,1645.07,0.00013566,2]
[398492261,1765743559878,179.42485418,0.0001313,2]
[398492262,1765743562377,158.57000507,0.00013673,2]
[398492263,1765743562400,141.42999493,0.00013673,2]
[398492264,1765743569980,500.0,0.00013699,2]
[398492265,1765743570344,500.0,0.00013273,2]
[398492266,1765743570482,209.01038363,0.00013273,2]
[398492267,1765743570519,500.0,0.00013273,2]
[398492268,1765743603311,300.0,0.0001382,2]
[398492269,1765743606834,500.0,0.00013699,2]
[398492270,1765743606862,500.0,0.00013699,2]
[398492271,1765743607829,500.0,0.00013699,2]
[398492272,1765743610336,150.0,5.2e-07,2]
[398492273,1765743610608,500.0,0.00013699,2]
[398492274,1765743611080,377.25524305,0.00013273,2]
[398492275,1765743611371,150.0,5.2e-07,2]
[398492276,1765743612405,150.0,5.2e-07,2]
[398492277,1765743613929,150.0,5.2e-07,2]
[398492278,1765743614610,150.0,5.2e-07,2]
[398492279,1765743615537,150.0,5.2e-07,2]
[398492280,1765743616604,150.0,5.2e-07,2]
[398492281,1765743617725,150.0,5.2e-07,2]
[398492282,1765743630278,189.49,7.455e-05,2]
[398492283,1765743630728,378.98,8.133e-05,2]
[398492284,1765743631265,568.47,8.811e-05,2]
[398492285,1765743631676,757.97,9.488e-05,2]
[398492286,1765743632072,947.46,0.00010166,2]
[398492287,1765743632500,1136.95,0.00010844,2]
[398492288,1765743632948,292.99437839,0.00011522,2]
[398492289,1765743632973,1033.44562161,0.00011522,2]
[398492290,1765743633307,1515.93,0.00012199,2]
[398492291,1765743634182,1705.42,0.00012877,2]
[398492292,1765743634856,1894.91,0.00013555,2]
[398492293,1765743642485,625.368304,0.00013699,2]
[398492295,1765743666213,500.0,0.00013699,2]
[398492296,1765743673030,500.0,0.00013699,2]
[398492297,1765743676936,500.0,0.00013273,2]
[398492298,1765743681149,300.0,0.00013673,2]
[398492299,1765743687200,500.0,0.00013699,2]
[398492300,1765743687361,500.0,0.00013273,2]
[398492301,1765743687745,500.0,0.00013273,2]
[398492305,1765743705310,176.57,0.0001,2]
[398492306,1765743706506,150.0,7.48e-05,2]
[398492307,1765743707216,158.82,8.16e-05,2]
[398492308,1765743707767,238.23,8.84e-05,2]
[398492309,1765743707906,317.64,9.52e-05,2]
[398492310,1765743708237,397.05,0.000102,2]
[398492311,1765743709153,476.46,0.0001088,2]
[398492312,1765743709591,555.87,0.0001156,2]
[398492313,1765743709998,635.28,0.0001224,2]
[398492314,1765743710411,714.69,0.0001292,2]
[398492315,1765743710811,794.1,0.000136,2]
[398492316,1765743723641,500.0,0.00013699,2]
[398492317,1765743725062,500.0,0.00013699,2]
[398492318,1765743726064,459.931696,0.00013699,2]
[398492319,1765743726087,40.068304,0.00013699,2]
[398492320,1765743728913,500.0,0.00013273,2]
[398492321,1765743729149,-300.0,0.00013819,2]
[398492322,1765743781896,150.0,7.49e-05,2]
[398492323,1765743782322,150.0,8.171e-05,2]
[398492324,1765743782864,150.0,8.852e-05,2]
[398492325,1765743782959,300.0,0.00013819,2]
[398492326,1765743783057,376.26864403,0.00013273,2]
[398492327,1765743783192,174.22,9.533e-05,2]
[398492328,1765743783492,500.0,0.00013273,2]
[398492329,1765743783729,217.77,0.00010214,2]
[398492330,1765743784169,261.32,0.00010895,2]
[398492331,1765743784597,304.88,0.00011576,2]
[398492332,1765743785007,348.43,0.00012257,2]
[398492333,1765743785443,391.99,0.00012938,2]
[398492334,1765743785860,435.54,0.00013619,2]
[398492335,1765743787011,500.0,0.00013699,2]
[398492336,1765743788829,2000.0,0.000138,2]
[398492337,1765743795027,500.0,0.00013699,2]
[398492338,1765743802746,300.0,0.00013673,2]
[398492339,1765743807466,500.0,0.00013699,2]
[398492340,1765743808185,500.0,0.00013273,2]
[398492341,1765743809063,500.0,0.00013273,2]
[398492342,1765743815271,839.59135597,0.00013721,2]
[398492343,1765743815294,5195.69248097,0.00013721,2]
[398492344,1765743842488,300.0,0.00013819,2]
[398492345,1765743845122,500.0,0.00013273,2]
[398492346,1765743845356,500.0,0.00013273,2]
[398492347,1765743848041,500.0,0.00013699,2]
[398492348,1765743850608,500.0,0.00013273,2]
[398492349,1765743852943,150.0,7.502e-05,2]
[398492350,1765743853386,150.0,8.184e-05,2]
[398492351,1765743854083,212.68,8.866e-05,2]
[398492352,1765743854195,283.57,9.548e-05,2]
[398492353,1765743854598,354.47,0.0001023,2]
[398492354,1765743855001,425.36,0.00010912,2]
[398492355,1765743855403,496.26,0.00011594,2]
[398492356,1765743856041,431.97751903,0.00012276,2]
[398492357,1765743856066,135.17248097,0.00012276,2]
[398492358,1765743856248,638.04,0.00012958,2]
[398492359,1765743856688,708.94,0.0001364,2]
[398492360,1765743876646,500.0,0.00013819,2]
[398492361,1765743876681,500.0,0.00013819,2]
[398492362,1765743876729,500.0,0.00013819,2]
[398492363,1765743876768,500.0,0.00013819,2]
[398492364,1765743876815,163.77836539,0.00013819,2]
[398492365,1765743876863,224.50160199,0.00013819,2]
[398492366,1765743877055,500.0,0.00013819,2]
[398492367,1765743877114,500.0,0.00013819,2]
[398492368,1765743877166,500.0,0.00013819,2]
[398492369,1765743877232,500.0,0.00013819,2]
[398492370,1765743877266,500.0,0.00013819,2]
[398492371,1765743877312,478.0375334,0.00013819,2]
[398492372,1765743883859,500.0,0.00013819,2]
[398492373,1765743883889,500.0,0.00013819,2]
[398492374,1765743883925,518.23912966,0.00013819,2]
[398492375,1765743883980,500.0,0.00013819,2]
[398492376,1765743884155,500.0,0.00013819,2]
[398492377,1765743884210,500.0,0.00013819,2]
[398492378,1765743884287,133.30088859,0.00013819,2]
[398492379,1765743884312,366.69911141,0.00013819,2]
[398492380,1765743884351,500.0,0.00013819,2]
[398492381,1765743884395,265.20021536,0.00013819,2]
[398492383,1765743902162,300.0,0.00013819,2]
[398492384,1765743903860,500.0,0.00013273,2]
[398492385,1765743906985,500.0,0.00013273,2]
[398492386,1765743907033,500.0,0.00013273,2]
[398492387,1765743907517,500.0,0.00013273,2]
[398492388,1765743911014,500.0,0.00013699,2]
[398492390,1765743918396,500.0,0.00013699,2]
[398492391,1765743920136,151.0,0.00013819,2]
[398492399,1765743921605,179.36038715,0.00013819,2]
[398492400,1765743921908,500.0,0.00013273,2]
[398492405,1765743927539,300.0,0.00013673,2]
[398492406,1765743928237,150.0,7.513e-05,2]
[398492407,1765743928645,285.81,8.196e-05,2]
[398492408,1765743929077,428.72,8.879e-05,2]
[398492409,1765743929645,571.63,9.562e-05,2]
[398492410,1765743929902,714.54,0.00010245,2]
[398492411,1765743930355,857.44,0.00010928,2]
[398492412,1765743930709,1000.35,0.00011611,2]
[398492413,1765743930964,290.98961637,0.00013273,2]
[398492415,1765743931097,138.27066971,0.00012294,2]
[398492416,1765743931123,1004.98933029,0.00012294,2]
[398492417,1765743931165,500.0,0.00013699,2]
[398492418,1765743931307,500.0,0.00013273,2]
[398492419,1765743931513,1286.16,0.00012977,2]
[398492420,1765743931693,500.0,0.00013273,2]
[398492421,1765743931915,1429.07,0.0001366,2]
[398492423,1765743962615,300.0,0.00013819,2]
[398492424,1765743967150,500.0,0.00013273,2]
[398492425,1765743968434,500.0,0.00013699,2]
[398492426,1765743971109,500.0,0.00013699,2]
[398492427,1765743972186,622.74475695,0.00013273,2]
[398492428,1765743987857,1000.0,0.00013819,2]
[398492429,1765743988794,1000.0,0.00013819,2]
[398492430,1765743989675,1000.0,0.00013819,2]
[398492431,1765743990706,1000.0,0.00013819,2]
[398492432,1765743991758,1000.0,0.00013819,2]
[398492433,1765743992869,1000.0,0.00013819,2]
[398492434,1765743993829,1000.0,0.00013819,2]
[398492435,1765743994847,577.26524305,0.00013819,2]
[398492436,1765743994870,422.73475695,0.00013819,2]
[398492437,1765743995856,1000.0,0.00013819,2]
[398492438,1765743996963,1000.0,0.00013819,2]
[398492439,1765743998336,1000.0,0.00013819,2]
[398492440,1765743999028,1000.0,0.00013819,2]
[398492441,1765744000031,1000.0,0.00013819,2]
[398492442,1765744000993,1000.0,0.00013819,2]
[398492443,1765744002005,799.16843587,0.00013819,2]
[398492444,1765744003645,150.0,7.49e-05,2]
[398492445,1765744004268,150.0,8.171e-05,2]
[398492446,1765744004469,150.0,8.852e-05,2]
[398492447,1765744004862,171.13,9.533e-05,2]
[398492448,1765744005275,213.91,0.00010213,2]
[398492449,1765744005667,256.69,0.00010894,2]
[398492450,1765744006088,299.47,0.00011575,2]
[398492451,1765744006487,342.26,0.00012256,2]
[398492452,1765744006924,385.04,0.00012937,2]
[398492453,1765744007345,427.82,0.00013618,2]
[398492454,1765744018971,-226.66582112,0.0001382,2]
[398492455,1765744019000,-1000.0,0.00013821,2]
[398492456,1765744019029,-1000.0,0.00013821,2]
[398492457,1765744019058,-1000.0,0.00013821,2]
[398492458,1765744019087,-549.84083989,0.00013821,2]
[398492459,1765744019116,-500.0,0.00013821,2]
[398492460,1765744019151,-446.99667798,0.00013821,2]
[398492461,1765744019628,-553.00332202,0.00013821,2]
[398492462,1765744019658,-1000.0,0.00013821,2]
[398492463,1765744019688,-1000.0,0.00013821,2]
[398492464,1765744019717,-454.44,0.00013821,2]
[398492465,1765744019750,-1000.0,0.00013821,2]
[398492466,1765744020009,-985.12335596,0.00013821,2]
[398492467,1765744020130,-14.87664404,0.00013821,2]
[398492468,1765744020161,-617.0,0.00013821,2]
[398492469,1765744020196,-300.0,0.00014096,2]
[398492470,1765744020229,-300.0,0.00014096,2]
[398492471,1765744020265,-300.0,0.00014096,2]
[398492472,1765744020299,-300.0,0.00014096,2]
[398492473,1765744020332,-300.0,0.00014096,2]
[398492474,1765744020365,-300.0,0.00014096,2]
[398492475,1765744020396,-300.0,0.00014096,2]
[398492476,1765744020427,-300.0,0.00014096,2]
[398492477,1765744020460,-300.0,0.00014096,2]
[398492478,1765744020493,-300.0,0.00014096,2]
[398492479,1765744020524,-300.0,0.00014096,2]
[398492480,1765744020555,-300.0,0.00014096,2]
[398492481,1765744020585,-300.0,0.00014096,2]
[398492482,1765744020615,-300.0,0.00014096,2]
[398492483,1765744020646,-36.25671192,0.00014096,2]
[398492484,1765744021357,-263.74328808,0.00014096,2]
[398492485,1765744021389,-330.89305927,0.0001422,2]
[398492486,1765744021423,-191.61128911,0.0001422,2]
[398492487,1765744021456,-251.68891282,0.0001422,2]
[398492488,1765744021486,-600.0,0.00014221,2]
[398492489,1765744021516,-184.44,0.00014247,2]
[398492490,1765744021545,-1000.0,0.00014247,2]
[398492491,1765744021574,-1000.0,0.00014247,2]
[398492492,1765744021603,-997.62601836,0.00014247,2]
[398492493,1765744022138,-1000.0,0.00014247,2]
[398492494,1765744022169,-1000.0,0.00014247,2]
[398492495,1765744022199,-1000.0,0.00014247,2]
[398492496,1765744022228,-1000.0,0.00014247,2]
[398492497,1765744022257,-154.76780128,0.00014247,2]
[398492498,1765744022288,-690.47439744,0.00014247,2]
[398492499,1765744022361,-309.52560256,0.00014247,2]
[398492500,1765744022392,-244.509,0.00014247,2]
[398492501,1765744022424,-500.0,0.00014365,2]
[398492502,1765744022461,-1500.0,0.00014368,2]
[398492503,1765744022513,-1500.0,0.00014368,2]
[398492504,1765744022544,-391.94079488,0.00014368,2]
[398492505,1765744022940,-1108.05920512,0.00014368,2]
[398492506,1765744022972,-1500.0,0.00014368,2]
[398492507,1765744023003,-1500.0,0.00014368,2]
[398492508,1765744023034,-283.89158976,0.00014368,2]
[398492509,1765744026554,-1216.10841024,0.00014368,2]
[398492510,1765744026583,-1500.0,0.00014368,2]
[398492511,1765744026612,-1500.0,0.00014368,2]
[398492512,1765744026642,-500.0,0.00014368,2]
[398492513,1765744026829,500.0,0.00013273,2]
[398492514,1765744026877,500.0,0.00013273,2]
[398492515,1765744027462,-600.0,0.0001453,2]
[398492516,1765744027493,-669.88618937,0.00014586,2]
[398492517,1765744027523,-1001.0,0.00014586,2]
[398492518,1765744027550,-900.0,0.00014768,2]
[398492519,1765744027578,-500.0,0.00014789,2]
[398492520,1765744027607,-1158.23762126,0.00014795,2]
[398492522,1765744028349,-341.76237874,0.00014795,2]
[398492523,1765744028381,-1500.0,0.00014795,2]
[398492524,1765744028411,-1500.0,0.00014795,2]
[398492525,1765744028442,-1500.0,0.00014795,2]
[398492526,1765744032370,-1500.0,0.00014795,2]
[398492527,1765744032399,-1500.0,0.00014795,2]
[398492528,1765744032428,-153.68514453,0.00014815,2]
[398492529,1765744032457,-340.20547275,0.00014815,2]
[398492530,1765744039337,-591.89320922,0.00014816,2]
[398492531,1765744039366,-10000.01,0.00014816,2]
[398492532,1765744039522,-10000.01,0.00014816,2]
[398492533,1765744040942,500.0,0.00013273,2]
[398492534,1765744042055,-229.65979517,0.00013821,2]
[398492535,1765744042241,-9540.69040966,0.00014816,2]
[398492536,1765744042273,-10000.01,0.00014816,2]
[398492537,1765744042319,-10000.01,0.00014816,2]
[398492538,1765744042351,-10000.01,0.00014816,2]
[398492539,1765744042366,-10000.01,0.00014816,2]
[398492540,1765744044734,-10000.01,0.00014816,2]
[398492541,1765744047687,-10000.01,0.00014816,2]
[398492542,1765744047822,-10000.01,0.00014816,2]
[398492543,1765744047934,-10000.01,0.00014816,2]
[398492544,1765744048053,-10000.01,0.00014816,2]
[398492545,1765744048238,-10000.01,0.00014816,2]
[398492546,1765744049717,500.0,0.00013273,2]
[398492547,1765744049786,500.0,0.00013273,2]
[398492548,1765744050900,-500.0,0.00013699,2]
[398492549,1765744050933,-1000.0,0.00013821,2]
[398492550,1765744050962,-1000.0,0.00013821,2]
[398492551,1765744050992,-500.0,0.00014247,2]
[398492552,1765744051022,-1500.0,0.00014368,2]
[398492553,1765744051169,-1000.01,0.00014368,2]
[398492554,1765744056932,-499.99,0.00014368,2]
[398492555,1765744056972,-9000.03,0.00014816,2]
[398492556,1765744057047,-10000.01,0.00014816,2]
[398492557,1765744057184,-10000.01,0.00014816,2]
[398492558,1765744057311,-10000.01,0.00014816,2]
[398492559,1765744057426,-10000.01,0.00014816,2]
[398492560,1765744057540,-10000.01,0.00014816,2]
[398492561,1765744075786,150.0,8.628e-05,2]
[398492562,1765744076200,150.0,9.413e-05,2]
[398492563,1765744076626,164.29,0.00010197,2]
[398492564,1765744077079,219.05,0.00010982,2]
[398492565,1765744077468,273.81,0.00011766,2]
[398492566,1765744078307,328.57,0.0001255,2]
[398492567,1765744078422,383.33,0.00013335,2]
[398492568,1765744078863,204.90977672,9.277e-05,2]
[398492569,1765744079534,204.90977672,0.00013294,2]
[398492570,1765744082218,153.46,0.00012,2]
[398492571,1765744082498,153.46,0.000121,2]
[398492572,1765744082827,153.46,0.000122,2]
[398492573,1765744083161,153.46,0.000123,2]
[398492574,1765744083909,153.46,0.000124,2]
[398492575,1765744083981,153.46,0.000125,2]
[398492576,1765744084163,153.46,0.000126,2]
[398492577,1765744085209,153.46,0.000127,2]
[398492578,1765744085629,153.46,0.000128,2]
[398492579,1765744085958,153.46,0.000129,2]
[398492580,1765744086245,153.46,0.00013,2]
[398492581,1765744086574,153.46,0.000131,2]
[398492582,1765744086849,153.46,0.000132,2]
[398492583,1765744087132,153.46,0.000133,2]
[398492584,1765744087403,153.46,0.000134,2]
[398492585,1765744091740,5619.24044656,0.000134,2]
[398492586,1765744091766,14.75955344,0.000134,2]
[398492587,1765744102830,-153.46,0.000135,2]
[398492588,1765744108874,192.78193639,0.00013158,2]
[398492589,1765744118015,-226.55615628,0.0001355,2]
[398492590,1765744120211,205.93627484,0.000135,2]
[398492591,1765744123964,160.23,7.2e-05,2]
[398492592,1765744133698,-153.46,0.000136,2]
[398492593,1765744143320,500.0,0.00013273,2]
[398492594,1765744145652,152.4,0.00012,2]
[398492595,1765744146014,152.4,0.00012,2]
[398492596,1765744146722,152.4,0.000121,2]
[398492597,1765744147107,152.4,0.000121,2]
[398492598,1765744147237,152.4,0.000122,2]
[398492599,1765744147353,152.4,0.000122,2]
[398492600,1765744147515,152.4,0.000123,2]
[398492601,1765744148004,152.4,0.000123,2]
[398492602,1765744150668,372.85,7.517e-05,2]
[398492604,1765744154597,152.4,0.000124,2]
[398492605,1765744155003,152.4,0.000124,2]
[398492606,1765744155350,152.4,0.000125,2]
[398492607,1765744155602,152.4,0.000125,2]
[398492608,1765744155633,745.69,8.201e-05,2]
[398492609,1765744155900,152.4,0.000126,2]
[398492610,1765744156208,152.4,0.000126,2]
[398492611,1765744156383,1118.54,8.884e-05,2]
[398492612,1765744156490,152.4,0.000127,2]
[398492613,1765744157184,152.4,0.000127,2]
[398492614,1765744157216,1491.38,9.568e-05,2]
[398492615,1765744157307,152.4,0.000128,2]
[398492616,1765744157359,1864.23,0.00010251,2]
[398492617,1765744157442,152.4,0.000128,2]
[398492618,1765744157595,2237.07,0.00010934,2]
[398492619,1765744157658,152.4,0.000129,2]
[398492620,1765744158019,493.85,0.00011618,2]
[398492621,1765744158048,2116.07,0.00011618,2]
[398492622,1765744158082,152.4,0.000129,2]
[398492623,1765744158343,152.4,0.00013,2]
[398492624,1765744158416,2982.76,0.00012301,2]
[398492625,1765744158633,152.4,0.00013,2]
[398492626,1765744158806,3355.61,0.00012985,2]
[398492627,1765744158968,152.4,0.000131,2]
[398492628,1765744159536,935.97,0.00013668,2]
[398492629,1765744159571,2792.48,0.00013668,2]
[398492630,1765744159625,152.4,0.000131,2]
[398492631,1765744159683,152.4,0.000131,2]
[398492632,1765744159858,152.4,0.000132,2]
[398492633,1765744160211,152.4,0.000132,2]
[398492634,1765744160497,152.4,0.000133,2]
[398492635,1765744160775,152.4,0.000133,2]
[398492636,1765744161160,152.4,0.000134,2]
[398492637,1765744161481,152.4,0.000134,2]
[398492638,1765744161791,152.4,0.000135,2]
[398492639,1765744162080,152.4,0.000135,2]
[398492640,1765744162357,152.4,0.000136,2]
[398492641,1765744162671,152.4,0.000136,2]
[398492642,1765744165677,500.0,0.00013273,2]
[398492643,1765744166964,300.0,0.00013673,2]
[398492644,1765744168694,500.0,0.00013273,2]
[398492645,1765744170307,500.0,0.00013273,2]
[398492646,1765744170702,500.0,0.00013273,2]
[398492647,1765744170745,500.0,0.00013273,2]
[398492649,1765744207025,153.87,0.00012,2]
[398492650,1765744207369,153.87,0.000121,2]
[398492651,1765744207531,500.0,0.00013273,2]
[398492652,1765744207644,153.87,0.000123,2]
[398492653,1765744207936,500.0,0.00013273,2]
[398492654,1765744208329,153.87,0.000124,2]
[398492655,1765744208496,153.87,0.000125,2]
[398492656,1765744208823,153.87,0.000126,2]
[398492657,1765744209059,153.87,0.000128,2]
[398492658,1765744209372,153.87,0.000129,2]
[398492659,1765744209879,153.87,0.00013,2]
[398492660,1765744209966,153.87,0.000131,2]
[398492661,1765744210321,40.03,0.000133,2]
[398492662,1765744210349,113.84,0.000133,2]
[398492663,1765744210550,153.87,0.000134,2]
[398492664,1765744210837,153.87,0.000135,2]
[398492665,1765744211772,153.87,0.000136,2]
[398492666,1765744217162,7700.0,0.000136,2]
[398492707,1765744231998,-300.0,0.00013698,2]
[398492709,1765744232007,-597.0,0.00013698,2]
[398492710,1765744232017,-500.0,0.00013699,2]
[398492711,1765744232026,-500.0,0.00013699,2]
[398492712,1765744232037,-500.0,0.00013699,2]
[398492714,1765744232047,-500.0,0.00013699,2]
[398492716,1765744232056,-500.0,0.00013699,2]
[398492718,1765744232066,-500.0,0.00013699,2]
[398492720,1765744232081,-500.0,0.00013699,2]
[398492722,1765744232091,-615.0,0.00013699,2]
[398492747,1765744232335,-153.87,0.000138,2]
[398492750,1765744232353,-500.0,0.00013819,2]
[398492752,1765744232363,-354.19730827,0.00013821,2]
[398492754,1765744232372,-1000.0,0.00013821,2]
[398492756,1765744232382,-270.34020483,0.00013821,2]
[398492758,1765744232391,-500.0,0.00013821,2]
[398492760,1765744232400,-1025.3055429,0.00013821,2]
[398492762,1765744232409,-988.32229374,0.00013821,2]
[398492764,1765744232418,-1000.0,0.00013821,2]
[398492766,1765744232427,-500.0,0.00013821,2]
[398492768,1765744232436,-153.87,0.000139,2]
[398492770,1765744232445,-153.87,0.00014,2]
[398492772,1765744232454,-600.0,0.00014221,2]
[398492774,1765744232463,-1000.0,0.00014247,2]
[398492776,1765744232473,-1000.0,0.00014247,2]
[398492778,1765744232482,-1000.0,0.00014247,2]
[398492780,1765744232491,-980.74538105,0.00014247,2]
[398492782,1765744232499,-1000.0,0.00014247,2]
[398492784,1765744232508,-1500.0,0.00014368,2]
[398492786,1765744232517,-1500.0,0.00014368,2]
[398492788,1765744232527,-900.0,0.00014768,2]
[398492790,1765744232536,-500.0,0.00014789,2]
[398492792,1765744232545,-500.0,0.00014795,2]
[398492794,1765744232554,-1500.0,0.00014795,2]
[398492796,1765744232563,-1500.0,0.00014795,2]
[398492798,1765744232572,-1500.0,0.00014795,2]
[398492800,1765744232581,-5693.15583482,0.00014816,2]
[398492802,1765744232590,-296047.72904667,0.00014816,2]
[398492831,1765744232854,355.01,7.504e-05,2]
[398492850,1765744233029,710.02,8.186e-05,2]
[398492879,1765744233294,659.53,8.868e-05,2]
[398492883,1765744233323,405.5,8.868e-05,2]
[398492912,1765744233604,1420.04,9.55e-05,2]
[398492953,1765744233999,1775.05,0.00010232,2]
[398492987,1765744234436,2130.07,0.00010914,2]
[398492988,1765744234884,2485.08,0.00011597,2]
[398492989,1765744235314,1784.27,0.00012279,2]
[398492990,1765744235345,1055.82,0.00012279,2]
[398492991,1765744235722,3195.1,0.00012961,2]
[398492992,1765744236116,3550.11,0.00013643,2]
[398493021,1765744237940,-500.0,0.00014246,2]
[398493023,1765744237950,-219.80042926,0.00014246,2]
[398493025,1765744237961,-500.0,0.00014246,2]
[398493027,1765744237970,-334.97619169,0.00014246,2]
[398493029,1765744237980,-500.0,0.00014246,2]
[398493031,1765744237989,-500.0,0.00014246,2]
[398493032,1765744237998,-500.0,0.00014246,2]
[398493034,1765744238008,-243.52655484,0.00014246,2]
[398493036,1765744238018,-500.0,0.00014246,2]
[398493038,1765744238027,-500.0,0.00014246,2]
[398493040,1765744238037,-200.99228807,0.00014246,2]
[398493042,1765744238046,-500.0,0.00014246,2]
[398493044,1765744238055,-500.0,0.00014246,2]
[398493046,1765744238064,-375.35290041,0.00014246,2]
[398493048,1765744238074,-533.66869145,0.00014246,2]
[398493050,1765744238084,-158.475,0.00014246,2]
[398493052,1765744238094,-1000.0,0.00014247,2]
[398493054,1765744238105,-578.19,0.00014365,2]
[398493056,1765744238115,-1001.0,0.00014808,2]
[398493058,1765744238125,-404819.48733445,0.00014816,2]
[398493060,1765744238135,-275.00070985,0.0001487,7]
[398493061,1765744238145,-578.19,0.00014916,2]
[398493063,1765744238155,-2000.0,0.00014916,2]
[398493065,1765744238165,-2000.0,0.00014916,2]
[398493067,1765744238174,-2000.0,0.00014916,2]
[398493068,1765744238184,-675.3118198,0.00014916,2]
[398493069,1765744238193,-2000.0,0.00014916,2]
[398493071,1765744238202,-500.0,0.00014919,2]
[398493073,1765744238211,-500.0,0.00014919,2]
[398493074,1765744238221,-151.32367851,0.00014919,2]
[398493075,1765744238231,-150.0,0.00014919,2]
[398493076,1765744238241,-150.0,0.00014919,2]
[398493077,1765744238251,-150.0,0.00014919,2]
[398493078,1765744238260,-150.0,0.00014919,2]
[398493079,1765744238269,-500.0,0.00014919,2]
[398493080,1765744238279,-150.0,0.00014919,2]
[398493081,1765744238289,-500.0,0.00014919,2]
[398493082,1765744238298,-500.0,0.00014919,2]
[398493083,1765744238308,-150.0,0.00014919,2]
[398493084,1765744238318,-150.0,0.00014919,2]
[398493085,1765744238327,-201.97777637,0.00014919,2]
[398493086,1765744238337,-500.0,0.00014919,2]
[398493087,1765744238347,-150.0,0.00014919,2]
[398493088,1765744238356,-500.0,0.00014919,2]
[398493089,1765744238366,-500.0,0.00014919,2]
[398493090,1765744238375,-500.0,0.00014919,2]